﻿Company(T),Trans.date,Supplier Name(T),TransNo,Amount,Irrecoverable VAT,Service/Dept(T),Procurement Category,Account code,Account code(T),Narrative/Purpose of Spend,Govt Procurement Card
East Cambridgeshire District Council,01/06/2017,Rail Travel,5106474,327.80,,National Practitioner Support Programme,Employees,1051,Staff Travelling,,Y
East Cambridgeshire District Council,01/06/2017,Toll Charges,5106474,9.58,,National Practitioner Support Programme,Employees,1051,Staff Travelling,,Y
East Cambridgeshire District Council,01/06/2017,Lunch Meetings,5106474,50.80,,National Practitioner Support Programme,Employees,1052,Staff Subsistence,,Y
East Cambridgeshire District Council,08/05/2017,Iken Business Ltd,638631,932.72,,Legal,Employees,1135,Training - External,Feb 2017 consultancy,
East Cambridgeshire District Council,23/05/2017,Shelter Training Ltd,638829,620.00,,Training,Employees,1135,Training - External,Housing Law & Advice A Foundation - London 6-7 & 13-14/6/17 - Redacted Personal Data,
East Cambridgeshire District Council,17/05/2017,Freight Transport Association,638774,"1,545.33",,Training,Employees,1136,Qualifications,Transport Manager CPC - 2017 Road Haulage 8/8/17 -  Redacted Personal Data,
East Cambridgeshire District Council,19/05/2017,National Energy Action,638802,808.00,,Training,Employees,1136,Qualifications,NEA training course & exam  Redacted Personal Data,
East Cambridgeshire District Council,05/05/2017,C D Clowe,638606,"2,182.00",,E Space North,Premises,2020,Premises Contract Work,LED Panel Installation E-Space North,
East Cambridgeshire District Council,18/04/2017,Ecoprod,638653,"1,380.90",,"PC Cloisters, Ely",Premises,2020,Premises Contract Work,,
East Cambridgeshire District Council,18/04/2017,Ecoprod,638653,"2,431.60",,"PC Palace Green, Ely",Premises,2020,Premises Contract Work,,
East Cambridgeshire District Council,18/04/2017,Ecoprod,638653,"1,380.90",,"PC Ship Lane, Ely",Premises,2020,Premises Contract Work,,
East Cambridgeshire District Council,10/05/2017,Harris Decorating,638671,625.00,,The Grange,Premises,2020,Premises Contract Work,Decoration of Office,
East Cambridgeshire District Council,27/04/2017,AmeyCespa (East) Limited,1137104,"1,228.36",,EI Recycling,Premises,2020,Premises Contract Work,Bringbank Oct16-Dec16,
East Cambridgeshire District Council,17/05/2017,AmeyCespa (East) Limited,1137216,"1,293.72",,EI Recycling,Premises,2020,Premises Contract Work,Bring Bank Qtrly charge 1/1/17-31/3/17,
East Cambridgeshire District Council,03/05/2017,H2O Servicing Ltd,638670,930.00,,Paradise Pool,Premises,2030,Premises Asset Management,Re-Seal around Skimmer Box Throats,
East Cambridgeshire District Council,17/05/2017,Metro Rod,638781,"2,015.00",,Closed Churchyards,Premises,2030,Premises Asset Management,St Marys Church St Marys Street,
East Cambridgeshire District Council,17/05/2017,C D Clowe,638794,"2,290.68",,Travellers Site - Wentworth,Premises,2030,Premises Asset Management,Upgrade distribution boards Wentworth TS,
East Cambridgeshire District Council,25/05/2017,A C Environmental Services (UK) Ltd,638820,795.00,,E Space North,Premises,2030,Premises Asset Management,Management Survey - Various Sites,
East Cambridgeshire District Council,25/05/2017,A C Environmental Services (UK) Ltd,638820,750.00,,E Space South,Premises,2030,Premises Asset Management,Management Survey - Various Sites,
East Cambridgeshire District Council,25/05/2017,A C Environmental Services (UK) Ltd,638820,"1,075.00",,Maltings Public Hall,Premises,2030,Premises Asset Management,Management Survey - Various Sites,
East Cambridgeshire District Council,28/04/2017,Total Gas and Power Limited,1137113,951.44,,E Space North,Premises,2110,Electricity,3004663222 ESpace North,
East Cambridgeshire District Council,02/05/2017,Total Gas and Power Limited,1137114,908.98,,E Space North,Premises,2110,Electricity,300466322 E-Space North 1/3/17-31/3/17,
East Cambridgeshire District Council,04/05/2017,Total Gas and Power Limited,1137132,774.68,,E Space North,Premises,2110,Electricity,3004663222 ESpace North,
East Cambridgeshire District Council,04/05/2017,Total Gas and Power Limited,1137133,907.45,,E Space North,Premises,2110,Electricity,3004663222 ESpace North,
East Cambridgeshire District Council,04/05/2017,Total Gas and Power Limited,1137134,882.24,,E Space North,Premises,2110,Electricity,3004663222 ESpace North,
East Cambridgeshire District Council,06/05/2017,Total Gas and Power Limited,1137160,"1,647.80",,The Grange,Premises,2110,Electricity,3004663200 The Grange,
East Cambridgeshire District Council,06/05/2017,Total Gas and Power Limited,1137162,763.63,,E Space North,Premises,2110,Electricity,3004663222 ESpace North,
East Cambridgeshire District Council,28/04/2017,Total Gas and Power Limited,1137109,"-1,119.44",,E Space North,Premises,2110,Electricity,3004663222 ESpace North,
East Cambridgeshire District Council,28/04/2017,Total Gas and Power Limited,1137112,-882.24,,E Space North,Premises,2110,Electricity,3004663222 ESpace North,
East Cambridgeshire District Council,28/04/2017,Total Gas and Power Limited,1137110,"-1,034.42",,E Space North,Premises,2110,Electricity,3004663222 ESpace North,
East Cambridgeshire District Council,19/05/2017,East Cambs District Council,1137275,"1,814.27",,Parking Of Vehicles,Premises,2310,General Rates,"905084011 Clay St Car Park, Soham 17/18",
East Cambridgeshire District Council,02/05/2017,Rigby Taylor Limited,638561,"1,164.00",,Parks And Open Spaces,Premises,2810,Grounds Materials,,
East Cambridgeshire District Council,03/05/2017,Metro Rod,638594,575.00,,Parking Of Vehicles,Premises,2820,Grounds Contract Work,Fountain Lane Soham,
East Cambridgeshire District Council,12/05/2017,Metro Rod,638692,800.00,,Parking Of Vehicles,Premises,2820,Grounds Contract Work,Barton Road,
East Cambridgeshire District Council,12/05/2017,Metro Rod,638693,750.00,,Parking Of Vehicles,Premises,2820,Grounds Contract Work,Main Street Littleport,
East Cambridgeshire District Council,17/05/2017,Metro Rod,638771,"1,850.00",,Parking Of Vehicles,Premises,2820,Grounds Contract Work,"Barton Rd, Ship Lane & Clay St Car Parks",
East Cambridgeshire District Council,10/05/2017,Environment Agency,1137180,661.51,,Travellers Site - Earith Bridge,Premises,2841,Licences,Wentworth TS 13/4/17-31/3/18,
East Cambridgeshire District Council,23/05/2017,Zurich Municipal,1137300,"129,697.14",,Insurance Premiums Susp A/C,Premises,2911,Insurance - Other Indemnities,QLA 19H085-0013-00 1/4/17-31/3/18,
East Cambridgeshire District Council,23/05/2017,Zurich Municipal,1137301,"2,236.33",,Insurance Premiums Susp A/C,Premises,2911,Insurance - Other Indemnities,EI 19H085-0017 1/4/17-31/3/18,
East Cambridgeshire District Council,23/05/2017,Zurich Municipal,1137302,797.50,,Insurance Premiums Susp A/C,Premises,2911,Insurance - Other Indemnities,DOL 19H085-0003 1/4/17-31/3/18,
East Cambridgeshire District Council,23/05/2017,Zurich Municipal,1137304,"2,458.21",,Insurance Premiums Susp A/C,Premises,2911,Insurance - Other Indemnities,F 19H085-0121 1/4/17-31/3/18,
East Cambridgeshire District Council,23/05/2017,Zurich Municipal,1137305,"1,117.40",,Insurance Premiums Susp A/C,Premises,2911,Insurance - Other Indemnities,F 19H085-0131 1/4/17-31/3/18,
East Cambridgeshire District Council,12/05/2017,AJ & R Scamblers & Sons Ltd,638760,855.21,,Parks And Open Spaces,Transport,3010,Vehicle Repairs,Repair to John Deere,
East Cambridgeshire District Council,26/05/2017,G & J Peck Ltd,638836,945.87,,FX57 FCC Tractor,Transport,3010,Vehicle Repairs,FX57 FCC,
East Cambridgeshire District Council,04/05/2017,Be Fuelcards,1137127,502.66,,General Gang,Transport,3021,Derv,Fuelcards April 2017,
East Cambridgeshire District Council,04/05/2017,Be Fuelcards,1137127,957.32,,Parks And Open Spaces,Transport,3021,Derv,Fuelcards April 2017,
East Cambridgeshire District Council,04/05/2017,Be Fuelcards,1137127,628.01,,Sanctuary Grasscutting,Transport,3021,Derv,Fuelcards April 2017,
East Cambridgeshire District Council,29/04/2017,ESPO,638686,"4,040.00",,Local Elections,Supplies & Services,4010,Equipment - Purchases,,
East Cambridgeshire District Council,15/05/2017,Ip-Xchange Ltd,638689,589.00,,E Space North,Supplies & Services,4010,Equipment - Purchases,,
East Cambridgeshire District Council,12/05/2017,Shaw & Sons Ltd,638699,807.80,,General Elections,Supplies & Services,4010,Equipment - Purchases,,
East Cambridgeshire District Council,01/06/2017,Mobile Booth,5106474,116.67,,National Practitioner Support Programme,Supplies & Services,4011,Equipment - Repairs,Repair to Tablet ,Y
East Cambridgeshire District Council,04/05/2017,Cooler aid Ltd,1137128,876.00,,The Grange,Supplies & Services,4012,Equipment - Vending Machines,Machine Rental Renewal - Quarterly Due 30/4/17,
East Cambridgeshire District Council,04/05/2017,Highfield Event Group Ltd,638616,"1,756.41",,Marketing & Grants,Supplies & Services,4013,Equipment - Hire,Hire of Marquees,
East Cambridgeshire District Council,10/05/2017,Konica Minolta Business Solutions East Ltd,1137182,"3,142.80",,Printing/Copying,Supplies & Services,4013,Equipment - Hire,The Grange 1/5/17-31/7/17,
East Cambridgeshire District Council,10/05/2017,City of Ely Council,638648,"27,320.00",,Community Projects & Grants,Supplies & Services,4015,S106 Spend,Ref 252 Cherry Hill Play Equipment,
East Cambridgeshire District Council,11/05/2017,ABG Ltd,638819,"19,679.53",,Country Park,Supplies & Services,4015,S106 Spend,Supply & Installation of Sudspave 40 Max Pathway - Ely Country Park,
East Cambridgeshire District Council,28/04/2017,ESPO,638555,542.65,,Cleaning,Supplies & Services,4030,Materials - Purchase,,
East Cambridgeshire District Council,22/05/2017,Bunzl  Cleaning & Hygiene Supplies,638795,"1,176.35",,Cleaning,Supplies & Services,4030,Materials - Purchase,,
East Cambridgeshire District Council,30/05/2017,Bunzl  Cleaning & Hygiene Supplies,638845,609.00,,Public Conveniences,Supplies & Services,4030,Materials - Purchase,Toilet Roll,
East Cambridgeshire District Council,09/05/2017,Amanda Dodman - Crazy Chefs,638634,604.00,,E Space North,Supplies & Services,4110,Food /Refreshments Purchased,Refreshments 24/4/17-28/4/17,
East Cambridgeshire District Council,02/05/2017,Corporate Mailing Solutions,638587,"3,120.50",,Combined Authority Mayoral Elections,Supplies & Services,4310,Printing & Stationery,Division Elections,
East Cambridgeshire District Council,02/05/2017,Corporate Mailing Solutions,638587,"3,120.50",,County Council Elections,Supplies & Services,4310,Printing & Stationery,Division Elections,
East Cambridgeshire District Council,02/05/2017,Corporate Mailing Solutions,638588,"2,742.34",,Combined Authority Mayoral Elections,Supplies & Services,4310,Printing & Stationery,Division Elections,
East Cambridgeshire District Council,02/05/2017,Corporate Mailing Solutions,638588,"2,742.35",,County Council Elections,Supplies & Services,4310,Printing & Stationery,Division Elections,
East Cambridgeshire District Council,02/05/2017,Corporate Mailing Solutions,638683,"4,997.67",,Combined Authority Mayoral Elections,Supplies & Services,4310,Printing & Stationery,Mayoral Elections Mailing,
East Cambridgeshire District Council,12/05/2017,Shaw & Sons Ltd,638699,965.70,,General Elections,Supplies & Services,4310,Printing & Stationery,,
East Cambridgeshire District Council,01/06/2017,IPF Store,5106474,193.91,,Printing/Copying,Supplies & Services,4310,Printing & Stationery,4 X Canon Inks ,Y
East Cambridgeshire District Council,03/05/2017,Bluesky International Limited,638638,"4,887.75",,Planning,Supplies & Services,4321,Photography,Orthorectified Aerial Photography,
East Cambridgeshire District Council,03/05/2017,The Oyster Partnership,638595,950.00,,Planning,Supplies & Services,4401,Agency Workers, Redacted Personal Data- Week Commencing 24/4/17,
East Cambridgeshire District Council,26/04/2017,The Oyster Partnership,638596,874.00,,Planning,Supplies & Services,4401,Agency Workers, Redacted Personal Data- Week Commencing 17/4/17,
East Cambridgeshire District Council,10/05/2017,The Oyster Partnership,638662,703.00,,Planning,Supplies & Services,4401,Agency Workers, Redacted Personal Data - Week Commencing 01/05/17,
East Cambridgeshire District Council,18/05/2017,Fenland District Council,638773,"8,190.00",,Emergency Planning,Supplies & Services,4401,Agency Workers, Redacted Personal Data - June16-March17,
East Cambridgeshire District Council,18/05/2017,Fenland District Council,638773,"8,190.00",,Health & Safety (Work),Supplies & Services,4401,Agency Workers, Redacted Personal Data- June16-March17,
East Cambridgeshire District Council,17/05/2017,The Oyster Partnership,638777,532.00,,Planning,Supplies & Services,4401,Agency Workers, Redacted Personal Data- Week Commencing 8/5/17,
East Cambridgeshire District Council,03/05/2017,Capita Treasury Solutions Ltd,1137196,"3,500.00",,Interest & Financial Transactions,Supplies & Services,4410,Capita Treasury Management,Treasury Services 1/5/17-31/10/17,
East Cambridgeshire District Council,12/05/2017,G4S Cash Solutions (UK) Ltd,1137204,822.99,,Angel Drove Commuters Car Park,Supplies & Services,4412,Courier Service,Contract 3342504 1/6/17-30/6/17,
East Cambridgeshire District Council,03/05/2017,Veshcourt Ltd,638579,540.00,,Homelessness,Supplies & Services,4421,Sanctuary Homelessness/Rent Deposit, Redacted Personal Data,
East Cambridgeshire District Council,19/05/2017,Aitus Residential Ltd,638782,600.00,,Homelessness,Supplies & Services,4421,Sanctuary Homelessness/Rent Deposit, Redacted Personal Data,
East Cambridgeshire District Council,22/05/2017,Chris Stewart Lettings Ltd,638832,952.50,,Homelessness,Supplies & Services,4421,Sanctuary Homelessness/Rent Deposit,Deposit  Redacted Personal Data,
East Cambridgeshire District Council,25/05/2017,Redacted Personal Data,638833,500.00,,Homelessness,Supplies & Services,4421,Sanctuary Homelessness/Rent Deposit,1 Month Rental  Redacted Personal Data,
East Cambridgeshire District Council,02/05/2017,Hays Human Resources,638564,"1,260.00",,Finance - Accountancy,Supplies & Services,4430,Consultants Fees, Redacted Personal DataW/E 7/4/17,
East Cambridgeshire District Council,03/05/2017,Hays Human Resources,638581,"1,680.00",,Finance - Accountancy,Supplies & Services,4430,Consultants Fees, Redacted Personal Data,
East Cambridgeshire District Council,08/05/2017,Hays Human Resources,638614,"1,470.00",,Finance - Accountancy,Supplies & Services,4430,Consultants Fees, Redacted Personal Data- Week Ending 28/4/17,
East Cambridgeshire District Council,25/04/2017,Garden Court Chambers,638640,"1,200.00",,National Practitioner Support Programme,Supplies & Services,4430,Consultants Fees, Redacted Personal DataAdvice on Homlessness Reduction bill,
East Cambridgeshire District Council,10/05/2017,Wilks Head & Eve,638642,"1,500.00",,Finance - Accountancy,Supplies & Services,4430,Consultants Fees,Market review report,
East Cambridgeshire District Council,10/05/2017,Kernon Countryside Consultants Limited,638658,"1,043.80",,Planning,Supplies & Services,4430,Consultants Fees,New England Stud 16/01318,
East Cambridgeshire District Council,11/05/2017,Hester Management Services Ltd,638673,"4,730.00",,Waste Service Review,Supplies & Services,4430,Consultants Fees,Waste Insourcing Project - 8 days,
East Cambridgeshire District Council,17/05/2017,Hays Human Resources,638775,"1,260.00",,Finance - Accountancy,Supplies & Services,4430,Consultants Fees, Redacted Personal Data - Week Ending 5/5/17,
East Cambridgeshire District Council,17/05/2017,Hays Human Resources,638776,"1,050.00",,Finance - Accountancy,Supplies & Services,4430,Consultants Fees, Redacted Personal Data- Week Ending 12/5/17,
East Cambridgeshire District Council,19/05/2017,Valuation Office Agency Admin,638816,"3,000.00",,Planning,Supplies & Services,4430,Consultants Fees,LS CTRL 15/01175/OUM,
East Cambridgeshire District Council,25/05/2017,Hays Human Resources,638825,"1,470.00",,Finance - Accountancy,Supplies & Services,4430,Consultants Fees, Redacted Personal Data - Week Ending 19/5/17,
East Cambridgeshire District Council,05/05/2017,Ernst & Young LLP,1137137,"14,177.00",,Corp.Man.Policy Research/Review,Supplies & Services,4441,External Audit Fees,fourth quarterly year ending 31/3/17,
East Cambridgeshire District Council,17/05/2017,Daisy Corporate Services,638798,"1,700.00",,Information Technology,Supplies & Services,4452,IT - Upgrade consultants,CCM Supervisor/Administration Training,
East Cambridgeshire District Council,22/05/2017,Daisy Corporate Services,1137279,"-1,100.00",,Information Technology,Supplies & Services,4452,IT - Upgrade consultants,Relates to Invoice PSIN30980,
East Cambridgeshire District Council,19/05/2017,Corporate Mailing Solutions,638797,"28,747.35",,General Elections,Supplies & Services,4510,Postage,General Election 2017,
East Cambridgeshire District Council,17/05/2017,Purchase Power,638839,"2,150.80",,E Space North,Supplies & Services,4510,Postage,,
East Cambridgeshire District Council,08/05/2017,Pitney Bowes Ltd,1137144,509.00,,E Space South,Supplies & Services,4510,Postage,Reset of Meter 4/5/17,
East Cambridgeshire District Council,10/05/2017,Royal Mail Group plc,1137181,"1,583.10",,Registration of Electors,Supplies & Services,4510,Postage,RSAC-AKKJ-YBCY,
East Cambridgeshire District Council,16/05/2017,Neopost Ltd,1137207,"3,000.00",,DMS,Supplies & Services,4510,Postage,Postage recredit,
East Cambridgeshire District Council,03/05/2017,Ip-Xchange Ltd,1137123,"1,473.01",,E Space South,Supplies & Services,4520,Telephone,E-Space South,
East Cambridgeshire District Council,03/05/2017,Ip-Xchange Ltd,1137124,"1,987.43",,E Space North,Supplies & Services,4520,Telephone,E-Space North,
East Cambridgeshire District Council,09/05/2017,Daisy Corporate Services,1137170,"4,957.77",,Information Technology,Supplies & Services,4520,Telephone,Fixed linme charges 1/4/17-30/4/17,
East Cambridgeshire District Council,03/05/2017,Virgin Media Payments - 923467,1137135,"1,634.14",,Information Technology,Supplies & Services,4522,Contributions (IT Only CCN),Account Number 923467,
East Cambridgeshire District Council,15/05/2017,Local World Ltd - Cambridge Newspapers,638768,630.00,,Planning,Supplies & Services,4532,T&C Planning Act Adverts,Cambridge news 11/5/17,
East Cambridgeshire District Council,22/05/2017,Local World Ltd - Cambridge Newspapers,638801,546.00,,Planning,Supplies & Services,4532,T&C Planning Act Adverts,cambridge news 18/5/17,
East Cambridgeshire District Council,04/05/2017,Star Security,638602,700.00,,Marketing & Grants,Supplies & Services,4540,Promotion Costs,Security cover for Ely Festival 30-31/5/17,
East Cambridgeshire District Council,08/05/2017,Production Services Entertainment Ltd,638626,"2,000.00",,Marketing & Grants,Supplies & Services,4540,Promotion Costs,Ely food festival 30/4/17 & 1/5/17,
East Cambridgeshire District Council,11/05/2017,AK Artist Management,638665,578.30,,Marketing & Grants,Supplies & Services,4540,Promotion Costs, Redacted Personal Data - Part 2 Payment on Completion,
East Cambridgeshire District Council,20/03/2017,Powerworks Maintenance Services Ltd,638600,573.00,,Transformation Programme,Supplies & Services,4550,IT Licences,,
East Cambridgeshire District Council,01/04/2017,Firmstep Ltd,1136762,"21,279.00",,Information Technology,Supplies & Services,4550,IT Licences,Annual Licence 10/4/17-9/4/18,
East Cambridgeshire District Council,05/04/2017,Vodafone Ltd,1136811,"1,131.04",,Information Technology,Supplies & Services,4550,IT Licences,Quarterly GSi convergence Framework,
East Cambridgeshire District Council,24/04/2017,Firmstep Ltd,1137010,"20,265.00",,Information Technology,Supplies & Services,4550,IT Licences,Annual Licence 10/4/17-9/4/18,
East Cambridgeshire District Council,24/04/2017,Firmstep Ltd,1137009,"-21,279.00",,Information Technology,Supplies & Services,4550,IT Licences,Relates to Invoice 2743,
East Cambridgeshire District Council,01/06/2017,123Reg,5106474,9.99,,National Practitioner Support Programme,Supplies & Services,4550,IT Licences,Cloud back-up ,Y
East Cambridgeshire District Council,01/06/2017,Google,5106474,47.60,,National Practitioner Support Programme,Supplies & Services,4550,IT Licences,Google For Work ,Y
East Cambridgeshire District Council,20/03/2017,Powerworks Maintenance Services Ltd,638600,"4,629.00",,Transformation Programme,Supplies & Services,4551,Hardware Purchases/Maint,,
East Cambridgeshire District Council,11/05/2017,Daisy Corporate Services,638668,"1,001.00",,Information Technology,Supplies & Services,4551,Hardware Purchases/Maint,,
East Cambridgeshire District Council,01/06/2017,Amazon,5106474,87.30,,Information Technology,Supplies & Services,4551,Hardware Purchases/Maint,Display Port ,Y
East Cambridgeshire District Council,12/05/2017,Plan Alpha Systems Ltd,638695,"4,100.00",,Combined Authority Mayoral Elections,Supplies & Services,4553,Software Purchases/Maint,Chooseyourmayor Website,
East Cambridgeshire District Council,23/05/2017,Northgate Public Services (UK) Ltd,1137282,666.00,,Information Technology,Supplies & Services,4553,Software Purchases/Maint,Paris Chip & Pin support & maint 1/7/17-30/6/18,
East Cambridgeshire District Council,12/05/2017,Local Government Association,638691,545.00,,Member Training,Supplies & Services,4621,Members Conference Expenses, Redacted Personal Data- LGA Annual Conference 4-6/7/17,
East Cambridgeshire District Council,05/05/2017,The Moore Hair Company,638605,"2,000.00",,Economic Development Admin,Supplies & Services,4710,Grants,Aprrenticeship Grant,
East Cambridgeshire District Council,10/05/2017,SE Electrical Services,638647,"2,000.00",,Economic Development Admin,Supplies & Services,4710,Grants,Apprenticeship Grant,
East Cambridgeshire District Council,15/05/2017,Swaffham Bulbeck Parish Council,638703,"5,000.00",,Community Land Trusts,Supplies & Services,4710,Grants,Grant,
East Cambridgeshire District Council,07/05/2017,Greater Cambridge & Greater Peterborough LEP,1137197,"12,240.00",,Economic Development Admin,Supplies & Services,4713,Grants - Contributions,Local Authority Contribution 2017/18,
East Cambridgeshire District Council,09/05/2017,Ely Museum,638625,"1,895.25",,The Old Gaol House,Supplies & Services,4714,Grants - Ely Museum,1st Qtr instalment grant 2017/18,
East Cambridgeshire District Council,07/05/2017,Burwell Community Sports Centre Ltd,638651,860.40,,Sports Co-ord (Leisure Centre & Sports Facs SLA/Investment),Supplies & Services,4730,Grants - Sports Dec,4 x Continental Badminton Posts,
East Cambridgeshire District Council,03/05/2017,Haymarket Business Publications Ltd,638583,950.00,,Planning,Supplies & Services,4780,Subscriptions - General,DCP online renewals,
East Cambridgeshire District Council,01/06/2017,Google Apps,5106474,7.12,,LATC,Supplies & Services,4780,Subscriptions - General,CLT Email ,Y
East Cambridgeshire District Council,18/05/2017,Redacted Personal Data,1137258,"1,760.00",,Marketing & Grants,Supplies & Services,4910,Other Payments,Escape Room Sessions OCH April 2017,
East Cambridgeshire District Council,22/05/2017,Cambridge City Council,1137278,"44,303.00",,Combined Authority Mayoral Elections,Supplies & Services,4911,Election Costs,75% Advance - Mayoral Election,
East Cambridgeshire District Council,15/05/2017,South Cambridgeshire District Council,1137280,"115,786.00",,Combined Authority Mayoral Elections,Supplies & Services,4911,Election Costs,75% Costs - Mayoral Election,
East Cambridgeshire District Council,26/05/2017,Huntingdonshire District Council,1137299,"115,025.00",,Combined Authority Mayoral Elections,Supplies & Services,4911,Election Costs,Housing Services,
East Cambridgeshire District Council,25/05/2017,Redacted Personal Data,1137289,"32,017.20",,Home Improvement Agency Services,Supplies & Services,4938,Client Contribution,Refund client contribution  Redacted Personal Data,
East Cambridgeshire District Council,25/05/2017,Man Construction Ltd,1137290,"20,000.00",,Home Improvement Agency Services,Supplies & Services,4938,Client Contribution,Inv 1061  Redacted Personal Data,
East Cambridgeshire District Council,04/05/2017,Prominent PR Ltd,638696,"4,660.00",,Public Relations,Third Party Payments,5010,Contracted Services,Communication Delivery April 2017,
East Cambridgeshire District Council,27/04/2017,AmeyCespa (East) Limited,1137105,"7,341.11",,Recycling,Third Party Payments,5010,Contracted Services,,
East Cambridgeshire District Council,27/04/2017,AmeyCespa (East) Limited,1137106,"4,004.09",,Recycling,Third Party Payments,5010,Contracted Services,,
East Cambridgeshire District Council,05/05/2017,AmeyCespa (East) Limited,1137138,"8,849.65",,Recycling,Third Party Payments,5010,Contracted Services,mixed recyclables March 2017,
East Cambridgeshire District Council,16/05/2017,SLM Ltd,1137208,"18,725.08",,Paradise Pool,Third Party Payments,5010,Contracted Services,Management fee April 17 & may 17,
East Cambridgeshire District Council,18/05/2017,Veolia ES (UK) Ltd,1137271,"1,397.35",,Bulk Waste,Third Party Payments,5010,Contracted Services,Monthly Cleaning Contract 1/4/17-30/4/17,
East Cambridgeshire District Council,18/05/2017,Veolia ES (UK) Ltd,1137271,"30,752.50",,Recycling,Third Party Payments,5010,Contracted Services,Monthly Cleaning Contract 1/4/17-30/4/17,
East Cambridgeshire District Council,18/05/2017,Veolia ES (UK) Ltd,1137271,"30,752.50",,Recycling Organic Waste,Third Party Payments,5010,Contracted Services,Monthly Cleaning Contract 1/4/17-30/4/17,
East Cambridgeshire District Council,18/05/2017,Veolia ES (UK) Ltd,1137271,"72,678.66",,Refuse Collection,Third Party Payments,5010,Contracted Services,Monthly Cleaning Contract 1/4/17-30/4/17,
East Cambridgeshire District Council,18/05/2017,Veolia ES (UK) Ltd,1137271,"41,127.95",,Weekly Collection Support Grant,Third Party Payments,5010,Contracted Services,Monthly Cleaning Contract 1/4/17-30/4/17,
East Cambridgeshire District Council,18/05/2017,Veolia ES (UK) Ltd,1137271,"45,162.31",,Street Cleansing,Third Party Payments,5010,Contracted Services,Monthly Cleaning Contract 1/4/17-30/4/17,
East Cambridgeshire District Council,02/05/2017,Breckland Council,1137116,"37,424.83",,Council Tax Collection Costs,Third Party Payments,5020,ARP Services,Provision services 2017/18,
East Cambridgeshire District Council,02/05/2017,Breckland Council,1137116,"44,280.75",,Housing Benefits,Third Party Payments,5020,ARP Services,Provision services 2017/18,
East Cambridgeshire District Council,02/05/2017,Breckland Council,1137116,"9,713.42",,NNDR Collection costs,Third Party Payments,5020,ARP Services,Provision services 2017/18,
East Cambridgeshire District Council,02/05/2017,Breckland Council,1137116,"-2,857.50",,Anglia Revenue Partnerships (ARP),Third Party Payments,5020,ARP Services,Provision services 2017/18,
East Cambridgeshire District Council,19/05/2017,Breckland Council,1137276,"19,891.00",,Housing Benefits,Third Party Payments,5023,Grants Paid Over (ARP),Right Benefit Initiative 2017/18 Funding,
East Cambridgeshire District Council,26/05/2017,Breckland Council,1137298,"8,335.85",,Housing Benefits,Third Party Payments,5023,Grants Paid Over (ARP),LA Data Sharing,
East Cambridgeshire District Council,09/05/2017,Pellikaan Holding (Belgie) NV,638663,"398,372.36",,Leisure Facility,Capital Costs,C201,Payments To Contractors,Ely Leisure Centre - 4th Valuation,
East Cambridgeshire District Council,25/05/2017,Man Construction Ltd,1137292,"3,875.20",,Mandatory Disabled Fac.Grant,Capital Costs,C402,Home Imp.Grant 50% advance, Redacted Personal Data,
East Cambridgeshire District Council,25/05/2017,Terry Group Ltd,1137296,"12,814.00",,Mandatory Disabled Fac.Grant,Capital Costs,C402,Home Imp.Grant 50% advance, Redacted Personal Data,
East Cambridgeshire District Council,11/05/2017,"Bob Smith Heating, Plumbing & Electrical Ltd",1137199,"2,406.15",,Mandatory Disabled Fac.Grant,Capital Costs,C404,Home Imp.Grant. Final payment, Redacted Personal Data,
East Cambridgeshire District Council,18/05/2017,Ashco Building & Maintenance Services Ltd,1137261,"7,105.47",,Mandatory Disabled Fac.Grant,Capital Costs,C404,Home Imp.Grant. Final payment, Redacted Personal Data,
East Cambridgeshire District Council,18/05/2017,CP Home Improvements,1137262,"1,583.23",,Mandatory Disabled Fac.Grant,Capital Costs,C404,Home Imp.Grant. Final payment, Redacted Personal Data,
East Cambridgeshire District Council,25/05/2017,Man Construction Ltd,1137291,"6,355.17",,Mandatory Disabled Fac.Grant,Capital Costs,C404,Home Imp.Grant. Final payment, Redacted Personal Data,
East Cambridgeshire District Council,25/05/2017,"Bob Smith Heating, Plumbing & Electrical Ltd",1137295,"7,353.85",,Mandatory Disabled Fac.Grant,Capital Costs,C404,Home Imp.Grant. Final payment, Redacted Personal Data,
East Cambridgeshire District Council,04/05/2017,Westair Reproductions Ltd,638603,563.00,,Cromwell House,Merchandising Stock,P730,Purchase - Souvenirs & Gifts,,
East Cambridgeshire District Council,02/05/2017,Cambridge Art,638608,668.00,,Cromwell House,Merchandising Stock,P730,Purchase - Souvenirs & Gifts,Postcards & Magnets,
East Cambridgeshire District Council,12/05/2017,Swann of York,638704,612.30,,Cromwell House,Merchandising Stock,P730,Purchase - Souvenirs & Gifts,,
East Cambridgeshire District Council,19/05/2017,Macmillan Distribution,638817,812.31,,Cromwell House,Merchandising Stock,P740,Purchase - Publications & Books,,
